Cogmind - Beta 16 @@@ ROGUE MODE // 2026.02.04 @ 18:28:36 Player: winnking222 Result: Destroyed by X8-F4T(j) with Overtuned Pulse Rifle Performance ------------- Evolutions (0) 0 Regions Visited (3) 600 Robots Destroyed (41) 205 Value Destroyed (993) 993 Prototype IDs (12) 240 Alien Tech Used (0) 0 Bonus (0) 0 TOTAL SCORE: 2038 Bonus ------- None Cogmind --------- Core Integrity 0/250 Matter 300/300 Energy 200/200 System Corruption 0% Temperature Cool (12) Movement Flying (997) Ox12 Location -7/Recycling Parts ------- > --- POWER (1) -------- Subdweller Power Source > --- PROPULSION (2) --- Flight Unit Flight Unit > --- UTILITY (2) ------ Huge Storage Unit Makeshift Light Armor Plating > --- WEAPON (2) ------- Subdweller Beam Cannon Subdweller Machine Gun > --- INVENTORY (25) --- Huge Storage Unit High-capacity Matter Pod (200) Structural Scanner Makeshift Light Armor Plating Tower Shield Battle Rifle Grenade Launcher SUBCON Basin (Full) Peak State ------------ > --- POWER ------------ Subdweller Power Source > --- PROPULSION ------- Spiked Treads Subdweller Monowheel > --- UTILITY ---------- Huge Storage Unit Makeshift Light Armor Plating > --- WEAPON ----------- Subdweller Beam Cannon Subdweller Machine Gun > --- INVENTORY -------- Flight Unit Flight Unit Huge Storage Unit High-capacity Matter Pod Structural Scanner Makeshift Light Armor Plating Tower Shield Subdweller Machine Gun Grenade Launcher SUBCON Basin [Rating: 36] Favorites ----------- Power Subdweller Power Source Engine Subdweller Power Source Propulsion Flight Unit Treads Spiked Treads Leg Makeshift Leg Wheel Compact Wheel Flight Unit Flight Unit Utility Huge Storage Unit Device Seismic Detector Storage Huge Storage Unit Protection Makeshift Light Armor Plating Weapon Subdweller Machine Gun Energy Gun Subdweller Laser Energy Cannon Subdweller Beam Cannon Ballistic Gun Subdweller Machine Gun Launcher Grenade Launcher Build | -11 -10 -10 -7 ------- Run | Yrd Mat Sub Rec Slots Evolved . | . . . . Power . | . . . . Propulsion . | . . . . Utility . | . . . . Weapon . | . . . . Parts Attached 48 | 7 8 33 . Power 8 | 1 1 6 . Engine 8 | 1 1 6 . Core . | . . . . Reactor . | . . . . Propulsion 12 | 2 2 8 . Treads 3 | 2 . 1 . Leg 3 | . . 3 . Wheel 4 | . 2 2 . Hover . | . . . . Flight 2 | . . 2 . Utility 7 | 2 1 4 . Device 1 | 1 . . . Storage 2 | 1 1 . . Processor . | . . . . Hackware . | . . . . Protection 4 | . . 4 . Artifact . | . . . . Weapon 21 | 2 4 15 . Energy Gun 4 | . 2 2 . Energy Cannon 3 | . . 3 . Ballistic Gun 13 | 2 2 9 . Ballistic Cannon . | . . . . Launcher 1 | . . 1 . Special Weapon . | . . . . Impact Weapon . | . . . . Slashing Weapon . | . . . . Piercing Weapon . | . . . . Special Melee Weapon . | . . . . Unidentified Prototypes . | . . . . Parts Lost 11 | . 2 9 . Power 1 | . . 1 . Propulsion 6 | . . 6 . Utility 1 | . . 1 . Weapon 3 | . 2 1 . Highest Loss Streak 3 | . 1 3 . To Critical Strikes . | . . . . Average Backups 12 | 4 12 14 7 Power . | . 1 . . Propulsion 3 | 2 5 4 . Utility 4 | . 1 5 5 Weapon 3 | . 3 4 2 Tool/Special . | . . . . Unused Backups 15 | . . 11 4 Power . | . . . . Propulsion 4 | . . 4 . Utility 4 | . . . 4 Weapon 7 | . . 7 . Tool/Special . | . . . . Average Slot Usage (%) 96 | . 99 94 100 Engine 13 | . 14 13 14 Treads 6 | . 15 7 . Leg 3 | . . 6 . Wheel 7 | . 12 9 . Flight 7 | . . . 28 Device 4 | . 14 4 . Storage 14 | . 14 14 14 Protection 9 | . . 9 14 Energy Gun 1 | . 8 1 . Energy Cannon 8 | . . 8 14 Ballistic Gun 16 | . 19 17 14 Peak Build Rating 36 | 7 9 36 34 Average Rating 25 | 5 8 26 34 On Entrance 12 | . 7 9 34 Avg Prop Armor Cover (%) 11 | . . 11 . Naked Turns . | . . . . Heaviest Build 101 | 13 88 101 101 Greatest Support 40 | 40 40 40 8 Greatest Overweight (x) 33 | 2 2 33 12 Average Overweight (x) 3 | . 1 3 12 Largest Inventory Capacity 25 | 8 25 25 25 Average Capacity 23 | 7 17 25 25 Most Carried 25 | 6 20 25 23 Average Carried 22 | 4 12 24 23 Final Capacity 25 | 8 25 25 25 Final Carried 23 | 5 20 23 23 Class Distribution -------------------- 51% | Mutant 42% | Scavenger-Mutant 6% | Derelict-Mutant Dominant Class ---------------- Mutant | -10/Materials Mutant | -10/Subcaves Scavenger-Mutant | -7/Recycling Resources | -11 -10 -10 -7 ----------- Run | Yrd Mat Sub Rec Matter Collected 1367 | 354 260 639 114 Remotely . | . . . . Salvage Created 1287 | 133 405 609 140 Parts 79 | 8 22 41 8 Haulers Intercepted 2 | . 2 . . Recyclers Shooed 3 | 1 2 . . Parts Field Recycled . | . . . . Retrieved Matter . | . . . . Parts Self-Destructed 17 | . . 17 . Prevented . | . . . . Parts Restored . | . . . . Kills | -11 -10 -10 -7 ------- Run | Yrd Mat Sub Rec Combat Hostiles Destroyed 32 | . 10 20 2 Guns 26 | . 10 16 . Cannons 6 | . . 4 2 Classes Destroyed 9 | 2 3 3 1 Tunneler 3 | 3 . . . Hauler 2 | . 2 . . Recycler 2 | 1 1 . . Turret 2 | . . 2 . Swarmer 14 | . 6 8 . Grunt 6 | . 4 2 . Sentry 1 | . . 1 . Subdweller 9 | . . 9 . Scrapper 2 | . . . 2 Best Kill Streak 4 | 2 4 3 2 Combat Bots Only 3 | . 3 3 2 Max Kills in Single Turn 1 | 1 1 1 1 Gunslinging . | . . . . Exploded . | . . . . Melee . | . . . . Uniques/NPCs Destroyed . | . . . . Combat | -11 -10 -10 -7 -------- Run | Yrd Mat Sub Rec Hostile Shots Fired 213 | . 68 136 9 Missed 57 | . 18 38 1 Hits 156 | . 50 98 8 Projectile 156 | . 50 98 8 Critical Strikes 3 | . 1 1 1 Damage Taken 2160 | . 625 1330 205 Core 263 | . 47 192 24 Absorbed by Shields . | . . . . Core Remaining (%) 100 | 100 . . . Volleys Fired 177 | 14 60 98 5 Largest 2 | 2 2 2 2 Hottest 110 | 40 105 110 110 Shots Fired 317 | 28 117 163 9 Gun 260 | 28 117 111 4 Cannon 51 | . . 46 5 Launcher 6 | . . 6 . Special . | . . . . Kinetic 174 | 28 48 94 4 Thermal 137 | . 69 63 5 Explosive 6 | . . 6 . Electromagnetic . | . . . . Robot Hit Streak 23 | 4 23 14 5 Robot Miss Streak 5 | 1 4 5 1 Penetration Max . | . . . . Secondary Targets 1 | . 1 . . Max Gunslinging Chain 1 | . 1 . . Shots Hit Robots 168 | 10 75 78 5 Core Hits 66 | 5 18 39 4 Critical Kills . | . . . . Critical Parts Destroyed . | . . . . Critical Strikes 2 | . 2 . . Burn 2 | . 2 . . Melee Attacks . | . . . . Impact . | . . . . Slashing . | . . . . Piercing . | . . . . Sneak Attacks . | . . . . Combat Hostiles . | . . . . Follow-up Attacks . | . . . . Damage Inflicted 2686 | 131 909 1521 125 Guns 2242 | 131 909 1162 40 Cannons 328 | . . 243 85 Explosions 116 | . . 116 . Melee . | . . . . Ramming . | . . . . Kinetic 1493 | 131 388 934 40 Thermal 1077 | . 521 471 85 Explosive 116 | . . 116 . Electromagnetic . | . . . . Impact . | . . . . Slashing . | . . . . Piercing . | . . . . Highest Corruption . | . . . . Average Corruption . | . . . . Corruption Purged . | . . . . Corruption Blocked . | . . . . Overload Shots . | . . . . Overflow Damage 39 | . . 39 . Projectiles 34 | . . 34 . Explosions 5 | . . 5 . Melee . | . . . . Knockbacks . | . . . . Impact . | . . . . Kinetic . | . . . . Secondary . | . . . . Self-Inflicted Damage 32 | . . 32 . Shots 1 | . . 1 . Rammed . | . . . . Targets Rammed . | . . . . Kicked . | . . . . Crushed . | . . . . Highest Temperature 289 | . 261 42 289 Average Temperature 71 | . 74 10 135 Received Heat Transfer 523 | . 264 138 121 Effects 4 | . 4 . . Energy Bleed 1 | . 1 . . Interference 3 | . 3 . . Siege Activations . | . . . . Martial Activations . | . . . . Shielding Activations . | . . . . Robots Disrupted . | . . . . Combat Hostiles . | . . . . Robots Corrupted . | . . . . Combat Hostiles . | . . . . Parts Fried . | . . . . Impact Corruptions . | . . . . Robots Melted . | . . . . Combat Hostiles . | . . . . Parts Melted 6 | . 5 . 1 Heat Transferred 2011 | . 1328 608 75 Parts Sabotaged . | . . . . Parts Stolen . | . . . . Parts Stripped . | . . . . Power Chain Reactions . | . . . . Alert | -11 -10 -10 -7 ------- Run | Yrd Mat Sub Rec Maximum Alert Level . | . . . . Low Security (%) 100 | 100 100 . 100 Level 1 . | . . . . Level 2 . | . . . . Level 3 . | . . . . Level 4 . | . . . . Level 5 . | . . . . High Security . | . . . . Max Security . | . . . . Peak Influence 186 | 10 186 . 97 Initial 97 | . . . 97 Average 29 | 1 88 . 4 Influence Increases 885 | 20 401 460 4 Destroy 0b10 Robot/C 460 | . 200 260 . Destroy 0b10 Robot/NC 35 | 20 15 . . Destroy Leader 64 | . 44 20 . Successful Hack 19 | . 19 . . Disable Machine 15 | . 15 . . Destroy Structure 7 | . 3 . 4 Lose Combat Pursuer 285 | . 105 180 . Influence Decreases 885 | 20 388 269 208 Entered New Map 114 | . . 7 107 Time Decay 707 | 20 368 218 101 Lost Part 64 | . 20 44 . Squads Dispatched . | . . . . Investigation . | . . . . Extermination . | . . . . Reinforcement . | . . . . Assault . | . . . . Garrison . | . . . . Intercept . | . . . . Searches Triggered . | . . . . Construction Impeded . | . . . . Haulers Reinforced . | . . . . Active Scanning Responses . | . . . . Cargo Convoy Interrupts . | . . . . Stealth | -11 -10 -10 -7 --------- Run | Yrd Mat Sub Rec Distress Signals 2 | . 2 . . Communications Jammed . | . . . . Distress Signals . | . . . . Times Spotted 50 | . 19 28 3 Peak Tracking Total 6 | . 5 6 1 Tactical Retreats 9 | . 4 5 . Traps | -11 -10 -10 -7 ------- Run | Yrd Mat Sub Rec Traps Triggered 1 | . 1 . . Indirectly . | . . . . Trap Hack Attempts . | . . . . Triggered . | . . . . Disarmed . | . . . . Reprogrammed . | . . . . Reused . | . . . . Traps Extracted . | . . . . Installed . | . . . . Triggered . | . . . . Most Traps Carried 1 | . . 1 . Machines | -11 -10 -10 -7 ---------- Run | Yrd Mat Sub Rec Machines Disabled 5 | . 1 4 . Max in Single Turn 1 | . 1 1 . Machines Repaired . | . . . . Machines Dismantled . | . . . . Machines Sabotaged . | . . . . Overloaded Fab Kills . | . . . . Hacking | -11 -10 -10 -7 --------- Run | Yrd Mat Sub Rec Machines Accessed 10 | . 6 4 . Terminals 6 | . 6 . . Fabricators . | . . . . Repair Stations . | . . . . Recycling Units . | . . . . Scanalyzers . | . . . . Garrison Access . | . . . . Total Hacks 31 | . 15 16 . Successful 27 | . 11 16 . Failed 4 | . 4 . . Catastrophic . | . . . . Database Lockouts . | . . . . Manual 14 | . 14 . . Terminals 15 | . 15 . . Fabricators . | . . . . Repair Stations . | . . . . Recycling Units . | . . . . Scanalyzers . | . . . . Garrison Access . | . . . . Terminal Hacks 17 | . 1 16 . Record 13 | . . 13 . Open Door 1 | . . 1 . Locate Traps 1 | . 1 . . Proto ID Catalog 1 | . . 1 . Release Object 1 | . . 1 . Fabricator Hacks . | . . . . Repair Station Hacks . | . . . . Recycling Unit Hacks . | . . . . Scanalyzer . | . . . . Garrison Access Hacks . | . . . . Unauthorized Hacks 10 | . 10 . . Terminals 10 | . 10 . . Botnet 4 | . 4 . . Skim 6 | . 6 . . Fabricators . | . . . . Repair Stations . | . . . . Recycling Units . | . . . . Scanalyzers . | . . . . Garrison Access . | . . . . Data Cores Recovered . | . . . . Used . | . . . . Hacking Detections 3 | . 3 . . Full Trace Events . | . . . . Feedback Events . | . . . . Feedback Blocked . | . . . . Robot Schematics Acquired . | . . . . Robots Built . | . . . . Authchips . | . . . . Time . | . . . . Total Robot Build Rating . | . . . . Part Schematics Acquired . | . . . . Parts Built . | . . . . Authchips . | . . . . Time . | . . . . Total Part Build Rating . | . . . . Part Studies Acquired . | . . . . Parts Repaired . | . . . . Time . | . . . . Parts Recycled . | . . . . Recycled Matter . | . . . . Retrieved Matter . | . . . . Retrieved Components . | . . . . Parts Scanalyzed . | . . . . Part Schematics Acquired . | . . . . Parts Damaged . | . . . . Bothacking | -11 -10 -10 -7 ------------ Run | Yrd Mat Sub Rec Used RIF Installer . | . . . . Robots Hacked . | . . . . Non-combat . | . . . . Combat . | . . . . Robot Hacks Applied . | . . . . Relay Couplers Released . | . . . . Fabnet Peak Effective % . | . . . . Robots Rewired . | . . . . Allies Hacked . | . . . . Hacks Repelled . | . . . . Allies | -11 -10 -10 -7 -------- Run | Yrd Mat Sub Rec Total Allies . | . . . . Largest Group . | . . . . Highest-Rated Group . | . . . . Highest-Rated Ally . | . . . . Total Orders . | . . . . Ally Attacks . | . . . . Total Damage . | . . . . Kills . | . . . . Allies Corrupted . | . . . . Allies Melted . | . . . . Intel | -11 -10 -10 -7 ------- Run | Yrd Mat Sub Rec Active Infowar (turns) 2005 | 48 333 1624 . Seismic 2005 | 48 333 1624 . Robot Analysis Total . | . . . . Derelict Logs Recovered 2 | . . 2 . Drone Launches . | . . . . Drone Recoveries . | . . . . Exploration | -11 -10 -10 -7 ------------- Run | Yrd Mat Sub Rec Turns Passed 8700 | 166 1074 5094 2366 Spaces Moved 2765 | 70 466 1998 231 Core 26 | 11 . 15 . Treads 441 | 59 204 178 . Legs 260 | . . 260 . Wheels 1806 | . 262 1544 . Hover . | . . . . Flight 232 | . . 1 231 Fastest Speed 50 | 50 130 130 997 Average Speed 273 | 151 153 221 997 Slowest Speed 1700 | 160 320 1700 997 Overloaded Moves . | . . . . Propulsion Burnouts . | . . . . Robots Hopped . | . . . . Potential Cave-ins . | . . . . Cave-ins Triggered . | . . . . Exploration Rate (%) 56 | 4 86 94 42 Regions Visited 3 Branch Regions 2 Pre-discovered Areas 2 | . . 2 . Known Exits Taken 2 | . 1 1 . Unknown Exits Taken 1 | 1 . . . Scrap Searched 7 | . . 7 . Spaces Dug 10 | . . 9 1 Terrain Destroyed 36 | . . 32 4 Melee . | . . . . Projectile 21 | . . 17 4 AOE 15 | . . 15 . Terrain Rammed . | . . . . Walls Destroyed . | . . . . Machines Disabled . | . . . . Actions | -11 -10 -10 -7 --------- Run | Yrd Mat Sub Rec Total 3619 | 102 712 2516 289 Wait 520 | . 155 312 53 Move 2762 | 69 465 1997 231 Hop . | . . . . Pick Up 60 | 12 20 28 . Fast Attach 3 | . . 3 . Attach 23 | 7 4 12 . Detach . | . . . . Swap 29 | . 4 25 . Drop 45 | . 4 41 . Fire 177 | 14 60 98 5 Melee . | . . . . Ram . | . . . . Kick . | . . . . Crush . | . . . . Escape Stasis . | . . . . Rewire . | . . . . Trap . | . . . . Miscellaneous . | . . . . Route ------- -11/Scrapyard -10/Materials (discovered 6 exits: *Mat x3 / *Min x2 / *Sub) -10/Subcaves (discovered 3 exits: [*Mat x2] / *Rec) -7/Recycling (discovered 1 exit: [*Fac]) History --------- Turn | Location | Event 14 | -11/Scrapyard | Discovered new exit (range 16) 167 | -11/Scrapyard | Entered Materials 301 | -10/Materials | Build established: Mutant 409 | -10/Materials | Discovered new exit (range 8) 800 | -10/Materials | Discovered new exit (range 10) 935 | -10/Materials | Discovered new exit (range 5) 950 | -10/Materials | Discovered new exit (range 10) 1004 | -10/Materials | Discovered new exit (range 8) 1025 | -10/Materials | Learned 2 Storage zone layouts 1077 | -10/Materials | Identified exit to Subcaves 1145 | -10/Materials | Learned location of 3 exits from Materials 1162 | -10/Materials | Loaded intel: 10 interactive machine locations 1171 | -10/Materials | Learned location of 2 exits from Mines 1196 | -10/Materials | Learned location of 3 exits from Materials 1224 | -10/Materials | Identified exit to Mines 1224 | -10/Materials | Identified exit to Materials 1241 | -10/Materials | Entered Subcaves 1242 | -10/Subcaves | Approached by a straggling Scientist 1242 | -10/Subcaves | Identified exit to Recycling 1298 | -10/Subcaves | Shifting Twisted Machinery released Shrapnel Trap 1303 | -10/Subcaves | Shifting Twisted Machinery released Sub. Machine Gun 1487 | -10/Subcaves | Disturbed a concealed Subdweller 1630 | -10/Subcaves | Visited Clippyterm 1634 | -10/Subcaves | Learned Factory garrison access intel 1675 | -10/Subcaves | Shifting Twisted Machinery released Sub. Laser 1680 | -10/Subcaves | Shifting Twisted Machinery released Sub. Machine Gun 1812 | -10/Subcaves | Learned location of Zion (-6) 1812 | -10/Subcaves | Met a Zionite searching for "candidates" 2168 | -10/Subcaves | Core integrity fell below 50% 2418 | -10/Subcaves | Discovered new exit (range 13) 2513 | -10/Subcaves | Build established: Scavenger-Mutant 3065 | -10/Subcaves | Lost 3 parts (2n1u) 3258 | -10/Subcaves | Found SUBCON Basin 3454 | -10/Subcaves | Learned Materials security intel 3699 | -10/Subcaves | Discovered new exit (range 11) 3733 | -10/Subcaves | Build established: Mutant 3841 | -10/Subcaves | Visited 4L-MR0's lab 3857 | -10/Subcaves | Found Tower Shield 3933 | -10/Subcaves | Ambushed by Subdwellers from Twisted Machinery 4250 | -10/Subcaves | Build established: Derelict-Mutant 4766 | -10/Subcaves | Build established: Mutant 4844 | -10/Subcaves | Ambushed by Subdweller buried in earth 5320 | -10/Subcaves | Core integrity fell below 20% 6335 | -10/Subcaves | Entered Recycling 6640 | -7/Recycling | Build established: Scavenger-Mutant 6994 | -7/Recycling | Discovered new exit (range 15) 8369 | -7/Recycling | Scanned before Scraplab entrance 8628 | -7/Recycling | Angered Scraplab inhabitants 8701 | -7/Recycling | Destroyed by X8-F4T(j) with Overtuned Pulse Rifle Last Messages --------------- 08389_ The wall retracts into the floor. 08399_ The floor rises up to form a wall. 08409_ The wall retracts into the floor. 08419_ The floor rises up to form a wall. 08429_ The wall retracts into the floor. 08439_ The floor rises up to form a wall. 08512_ The wall retracts into the floor. 08522_ The floor rises up to form a wall. 08552_ The wall retracts into the floor. 08562_ The floor rises up to form a wall. 08596_ The wall retracts into the floor. 08606_ The floor rises up to form a wall. 08640_ The wall retracts into the floor. 08666_ Critical hit (Burn: +50). 08667_ Mak. Salvage Targeting Computer melted. 08667_ SR-KRW(j) destroyed. 08670_ RM-QBA(j): "Defend the Scraplab!" 08673_ RM-QBA(j) destroyed. 08674_ Scrap Suit violently self-destructs. 08686_ Acquired 8 matter. Map ----- +----------------------------------------------------+ | | | | | | | | | | | | | | | | | | | | | | | | | | | | | | | | | | | | | | | | | | | ?????????????????????????????????????????????????? | | ?????????????????????????????????????????????????? | | ?????????????????????????????????????????????????? | | ?????????????????????######### c #????????? | | ?????????????????????#;*!@[ j #????????? | | ?????????????????????##!%##### "?????????? | | ??????????????????????#=*#???????????????????????? | | ??????????????????????## #???????????????????????? | | ???????????????????????# ##??????????????????????? | | ????????????????????#### "###????????????????????? | | ????????????????????# #????????????????????? | | ????????????????????# #????????????????????? | | ???????????#####????# #????????????????????? | | ???????????#"""#????# #????????????????????? | | ???????????#"T"#????####+####????????????????????? | | ?????#######" "####????# #???????????????????????? | | ?????# #????# #???????????????????????? | | ?????# #???## ##??????????????????????? | | ?????# #???# #??????????????????????? | | ?????# #???# +??????????????????????? | | ?????# """ """ #???# #??????????????????????? | | ?????# """ """ #???## ##??????????????????????? | | ?????# """ """ #????# #???????????????????????? | | ?????# #????# #???????????????????????? | | ?????# """ """ #????# #???????????????????????? | | ?????# """ """ #????# #???????????????????????? | | ?????# """ """ ###### #???????????????????????? | | ?????# + #???????????????????????? | | ?????#########+#### #???????????????????????? | +----------------------------------------------------+ Best States ------------- Heat Dissipation 25 Energy Generation 15 Energy Capacity 200 Matter Stores 300 Matter Capacity 300 Sight Range 16 Terrain Scan Density 10 Armor Coverage 150 Evasion (%) 40 Recoil Reduction 2 Item Schematics ----------------- None Robot Schematics ------------------ None Fabricated ------------ Nothing Repaired ---------- Nothing Studied --------- None Alien Tech Used ----------------- None Achievements -------------- None Challenges ------------ None Game ------ Seed ContainmentModifiedRay Manual? 0 Play Time 00:28:58 Cumulative 236.8 hours Start 2026.02.04 @ 16:09:20 End 2026.02.04 @ 18:28:36 Sessions 3 Manual Loads 0 Difficulty Rogue Special Mode None Game No. 322 Rogue 322 Adventurer 0 Explorer 0 Win Type - Total 4 Types 2/0/0/1/0/0/0/0/0/1 Lore% 76 Gallery% 75 Achievement% 53 Wizard Run 0 Options --------- Layout 0 ASCII 0 Keyboard 0 Movement Mouse Keybinds 0 Fullscreen 1 Font 16/SmallcapsGlow Map View 75x55 Zoom Use 0% Tactical HUD 1 Map Filters NONE Filters NONE Steam 1 RUN: 49a1bbf8-795a-4147-9fa1-bae89d3a489e